Cogmind - Beta 15 @@@ ROGUE MODE // 2025.08.21 @ 00:25:27 Player: k1ll3rb0t Result: Destroyed by D-63 Destroyer with Heavy Rocket Launcher Performance ------------- Evolutions (4) 2000 Regions Visited (13) 2600 Robots Destroyed (162) 810 Value Destroyed (7437) 7437 Prototype IDs (9) 180 Alien Tech Used (0) 0 Bonus (2013) 2013 TOTAL SCORE: 15040 Bonus ------- High Alert Combat Kills 852 Follower Combat Kills 82 Entered Garrisons 400 Entered DSFs 500 Acquired ECA 300 Friendly Fire -121 Cogmind --------- Core Integrity 0/850 Matter 199/300 Energy 100/100 System Corruption 3% Temperature Cool (0) Movement Core (50) Location -5/Proximity Caves Parts ------- > --- POWER (1) -------- (None) > --- PROPULSION (6) --- (None) > --- UTILITY (4) ------ Experimental Signal Interpreter 0b10 Decoder Chip [Generic] > --- WEAPON (4) ------- (None) > --- INVENTORY (5) ---- Heavy Deuterium Engine Authchip [Propulsion] Drone Bay (2/2) Wave Gun Peak State ------------ > --- POWER ------------ Reinforced Deuterium Engine > --- PROPULSION ------- Light Treads Light Treads Armored Treads Armored Treads > --- UTILITY ---------- High-capacity Storage Unit Improved Sensor Array Experimental Signal Interpreter Graphene Brace > --- WEAPON ----------- Plasma Cannon Compact Ion Cannon Coil Gun Bore Cannon > --- INVENTORY -------- Heavy Deuterium Engine Improved Cryofiber Web Improved Cooling System Improved Cooling System Matter Compressor Encrypted Comm Array 0b10 Decoder Chip [Generic] Weapon Cycler Thermal Defense Suite Advanced System Shield Authchip [Propulsion] Authchip [Propulsion] Authchip [Propulsion] Drone Bay Bomb Factory No. 2 Wave Gun Improved EM Pulse Cannon Heavy Battle Rifle [Rating: 60] Favorites ----------- Power Heavy Deuterium Engine Engine Heavy Deuterium Engine Power Core Nuclear Core Propulsion Light Treads Treads Light Treads Wheel Compact Wheel Utility High-capacity Storage Unit Device Graphene Brace Storage High-capacity Storage Unit Processor Experimental Signal Interpreter Hackware Hacking Suite Protection Propulsion Shielding Weapon Advanced Beam Cannon Energy Gun Wave Gun Energy Cannon Advanced Beam Cannon Ballistic Gun Coil Gun Ballistic Cannon Flak Cannon Launcher Missile Launcher Impact Weapon Hammer Slashing Weapon Katana Build | -11 -10 -9 -8 -8 -8 -8 -7 -7 -6 -6 -6 -6 -5 ------- Run | Yrd Mat Mat Mat Gar Mat Gar Fac DSF Fac Low Low Zio Pro Slots Evolved 8 | . . 2 2 . . . 2 . 2 . . . . Power . | . . . . . . . . . . . . . . Propulsion 4 | . . 1 1 . . . . . 2 . . . . Utility 2 | . . . . . . . 2 . . . . . . Weapon 2 | . . 1 1 . . . . . . . . . . Parts Attached 105 | 6 3 15 5 8 14 9 . 6 19 . 8 6 6 Power 7 | 1 . 1 . . 2 1 . . . . 1 . 1 Engine 6 | 1 . 1 . . 1 1 . . . . 1 . 1 Core 1 | . . . . . 1 . . . . . . . . Reactor . | . . . . . . . . . . . . . . Propulsion 35 | 2 . 4 1 6 6 4 . 2 8 . 2 . . Treads 33 | 2 . 2 1 6 6 4 . 2 8 . 2 . . Leg . | . . . . . . . . . . . . . . Wheel 2 | . . 2 . . . . . . . . . . . Hover . | . . . . . . . . . . . . . . Flight . | . . . . . . . . . . . . . . Utility 30 | 1 2 4 2 1 2 . . 3 5 . 3 5 2 Device 18 | . 1 2 2 . 1 . . 3 3 . 3 2 1 Storage 4 | 1 . 2 . . 1 . . . . . . . . Processor 5 | . . . . . . . . . 1 . . 3 1 Hackware 2 | . . . . 1 . . . . 1 . . . . Protection 1 | . 1 . . . . . . . . . . . . Artifact . | . . . . . . . . . . . . . . Weapon 33 | 2 1 6 2 1 4 4 . 1 6 . 2 1 3 Energy Gun 1 | . . . . . . . . . . . . . 1 Energy Cannon 17 | . . 5 1 . 2 3 . . 4 . 2 . . Ballistic Gun 10 | 2 . . 1 1 2 1 . 1 1 . . . 1 Ballistic Cannon 2 | . . . . . . . . . 1 . . 1 . Launcher 1 | . . . . . . . . . . . . . 1 Special Weapon . | . . . . . . . . . . . . . . Impact Weapon 1 | . 1 . . . . . . . . . . . . Slashing Weapon 1 | . . 1 . . . . . . . . . . . Piercing Weapon . | . . . . . . . . . . . . . . Special Melee Weapon . | . . . . . . . . . . . . . . Unidentified Prototypes 9 | . . 2 . . 1 . . . 2 . . 4 . Parts Lost 37 | . . 1 . 5 1 5 . 3 . 1 9 1 11 Power 3 | . . . . . . 1 . . . . 1 . 1 Propulsion 17 | . . 1 . 4 . 2 . 1 . . 5 1 3 Utility 4 | . . . . . . . . 1 . . 1 . 2 Weapon 13 | . . . . 1 1 2 . 1 . 1 2 . 5 Highest Loss Streak 6 | . . 1 . 3 1 3 . 2 . 1 4 1 6 To Critical Strikes . | . . . . . . . . . . . . . . Average Backups 17 | 2 7 11 14 14 15 19 19 18 19 19 16 19 19 Power 1 | . 1 1 1 2 2 1 2 2 2 2 1 1 1 Propulsion 1 | 2 4 3 4 3 3 4 4 4 2 2 1 . . Utility 9 | . . 2 4 5 5 7 8 7 10 10 10 13 14 Weapon 3 | . 1 3 3 3 5 6 5 4 5 4 2 3 2 Tool/Special . | . . . . . . . . . . . . . . Unused Backups 48 | . 4 5 4 1 7 3 . 3 7 1 . 3 10 Power 4 | . . . 1 . 2 . . 1 . . . . . Propulsion 5 | . 2 2 1 . . . . . . . . . . Utility 22 | . 1 1 1 1 4 1 . . 3 . . 2 8 Weapon 16 | . 1 2 1 . 1 2 . 2 4 1 . 1 1 Tool/Special 1 | . . . . . . . . . . . . . 1 Average Slot Usage (%) 86 | . 93 98 99 99 99 99 84 97 99 99 94 83 57 Engine 6 | . 14 10 9 9 8 9 7 7 6 6 6 6 1 Treads 26 | . 28 23 35 35 36 35 30 28 39 40 34 23 7 Device 11 | . 3 10 9 8 9 9 7 22 16 19 20 13 7 Storage 7 | . 14 11 9 9 9 9 7 7 6 6 6 6 5 Processor 3 | . . . . . . . . . 2 . . 5 10 Energy Cannon 17 | . . 28 31 32 23 26 23 23 20 20 18 13 7 Ballistic Gun 8 | . 26 2 4 3 12 9 7 7 4 6 1 6 11 Ballistic Cannon 1 | . . . . . . . . . 1 . 5 6 . Peak Build Rating 60 | 6 7 19 24 24 38 37 35 46 56 57 57 60 60 Average Rating 42 | 5 6 17 22 23 32 36 35 44 53 56 53 57 49 On Entrance 31 | . 6 7 19 24 23 37 35 35 46 54 52 49 60 Naked Turns . | . . . . . . . . . . . . . . Heaviest Build 107 | 11 12 41 48 48 71 75 75 78 84 80 85 107 83 Greatest Support 120 | 40 40 60 80 80 80 80 80 80 120 120 120 60 40 Greatest Overweight (x) 25 | 2 . 1 . . . 1 . 1 . . 1 2 25 Average Overweight (x) 1 | . . . . . . . . . . . . 1 9 Largest Inventory Capacity 20 | 8 8 15 15 15 20 20 20 20 20 20 20 20 20 Average Capacity 18 | 7 8 12 15 15 15 20 20 20 20 20 20 20 19 Most Carried 20 | 5 8 15 15 15 20 20 19 20 20 20 20 20 20 Average Carried 17 | 2 7 11 14 14 15 19 19 18 19 19 16 19 19 Final Capacity 20 | 8 8 15 15 15 20 20 20 20 20 20 20 20 5 Final Carried 20 | 5 8 15 15 14 20 19 19 20 20 20 15 20 4 Class Distribution -------------------- 33% | Scavenger-Gunner 17% | Scavenger-Skirmisher 17% | Tank 16% | Scavenger-Tank 9% | Gunner 5% | Mutant Dominant Class ---------------- Mutant | -10/Materials Gunner | -9/Materials Gunner | -8/Materials Scavenger-Gunner | -8/Garrison Scavenger-Gunner | -8/Materials Scavenger-Gunner | -8/Garrison Scavenger-Gunner | -7/Factory Scavenger-Gunner | -7/DSF Scavenger-Tank | -6/Factory Scavenger-Tank | -6/Lower Caves Scavenger-Tank | -6/Lower Caves Scavenger-Skirmisher | -6/Zion Tank | -5/Proximity Caves Resources | -11 -10 -9 -8 -8 -8 -8 -7 -7 -6 -6 -6 -6 -5 ----------- Run | Yrd Mat Mat Mat Gar Mat Gar Fac DSF Fac Low Low Zio Pro Matter Collected 3450 | 256 78 442 176 164 480 420 . 112 474 119 242 100 387 Remotely . | . . . . . . . . . . . . . . Salvage Created 7327 | . 129 898 55 800 1406 1587 . 371 898 113 535 . 535 Parts 388 | . 12 55 4 38 70 72 . 29 51 7 26 . 24 Haulers Intercepted 3 | . . 2 . . 1 . . . . . . . . Recyclers Shooed 3 | . 1 . . . 1 . . . 1 . . . . Parts Field Recycled . | . . . . . . . . . . . . . . Retrieved Matter . | . . . . . . . . . . . . . . Parts Self-Destructed 74 | . . . . . . . . . . 22 26 3 23 Prevented . | . . . . . . . . . . . . . . Kills | -11 -10 -9 -8 -8 -8 -8 -7 -7 -6 -6 -6 -6 -5 ------- Run | Yrd Mat Mat Mat Gar Mat Gar Fac DSF Fac Low Low Zio Pro Combat Hostiles Destroyed 153 | . 5 18 1 18 25 32 . 8 17 2 16 . 11 Melee 1 | . . . . . . 1 . . . . . . . Guns 30 | . 5 . . . 9 5 . 2 3 . . . 6 Cannons 114 | . . 17 1 15 15 26 . 6 14 2 15 . 3 AOE 4 | . . . . 2 . . . . . . . . 2 Classes Destroyed 18 | . 2 6 . . 3 3 . 1 . . 1 . 2 Worker 1 | . . 1 . . . . . . . . . . . Builder 1 | . . 1 . . . . . . . . . . . Hauler 3 | . . 2 . . 1 . . . . . . . . Recycler 2 | . . . . . 2 . . . . . . . . Operator 1 | . . 1 . . . . . . . . . . . Drone 1 | . . . . . . . . . . . . . 1 Watcher 1 | . . . . . . 1 . . . . . . . Swarmer 31 | . 3 4 . 3 2 3 . 3 4 . 7 . 2 Grunt 64 | . 2 7 . 7 16 18 . . 6 . 4 . 4 Brawler 2 | . . . . . . 1 . . . . . . 1 Duelist 6 | . . 2 . 3 1 . . . . . . . . Sentry 26 | . . 5 1 5 4 5 . 1 4 . 1 . . Demolisher 2 | . . . . . . . . . . . . . 2 Specialist 2 | . . . . . . . . 2 . . . . . Hunter 9 | . . . . . 1 3 . 1 . 2 2 . . Programmer 6 | . . . . . . 2 . . 2 . . . 2 Heavy 3 | . . . . . 1 . . 1 1 . . . . Thief 2 | . . . . . . . . . . . 2 . . Best Kill Streak 6 | . 4 6 1 3 6 3 . 4 4 2 5 . 3 Combat Bots Only 6 | . 4 5 1 3 6 3 . 4 4 2 5 . 3 Max Kills in Single Turn 2 | . 2 2 1 2 2 1 . 1 2 1 2 . 2 Gunslinging 1 | . 1 . . . . . . . . . . . . Exploded 2 | . . . . 2 . . . . . . . . 1 Melee 1 | . . . . . . 1 . . . . . . . Uniques/NPCs Destroyed . | . . . . . . . . . . . . . . Combat | -11 -10 -9 -8 -8 -8 -8 -7 -7 -6 -6 -6 -6 -5 -------- Run | Yrd Mat Mat Mat Gar Mat Gar Fac DSF Fac Low Low Zio Pro Hostile Shots Fired 860 | . 20 88 4 94 55 146 . 65 134 27 107 4 116 Missed 246 | . 6 29 2 25 14 40 . 23 40 7 26 3 31 Hits 614 | . 14 59 2 69 41 106 . 42 94 20 81 1 85 Melee 16 | . . 4 . 2 5 . . . . . 2 . 3 Projectile 598 | . 14 55 2 67 36 106 . 42 94 20 79 1 82 AOE 13 | . . . . . . . . . . . . . 13 Critical Strikes 19 | . . 2 . 4 1 6 . 1 1 . 1 . 3 Actively Blocked 3 | . . . . . . . . 1 1 . 1 . . Part Disruptions 1 | . . . . . . 1 . . . . . . . Damage Taken 9612 | . 121 701 28 1020 803 1460 . 588 987 269 1482 23 2130 Core 1270 | . 21 87 . 47 16 210 . 34 134 17 84 . 620 Absorbed by Shields . | . . . . . . . . . . . . . . Redirected to Shielding 3 | . 3 . . . . . . . . . . . . Ignored by Resistances 4 | . . . . . . . . . 4 . . . . Regen/Repaired (Parts) 152 | . . . . . 152 . . . . . . . . Core Remaining (%) 82 | 100 91 78 . . . 50 . 95 . . . . . Volleys Fired 343 | . 11 37 2 50 57 75 . 15 28 3 30 . 35 Largest 4 | . 2 3 4 4 4 4 . 4 4 4 4 . 4 Hottest 292 | . 40 204 227 267 227 231 . 208 287 260 292 . 251 Shots Fired 1053 | . 22 97 8 134 191 235 . 54 99 12 96 . 105 Gun 274 | . 22 . 2 18 77 67 . 14 21 3 1 . 49 Cannon 775 | . . 97 6 116 114 168 . 40 78 9 95 . 52 Launcher 4 | . . . . . . . . . . . . . 4 Special . | . . . . . . . . . . . . . . Kinetic 315 | . 22 . 2 18 77 67 . 14 25 3 29 . 58 Thermal 720 | . . 97 6 102 114 168 . 40 74 9 67 . 43 Explosive 4 | . . . . . . . . . . . . . 4 Electromagnetic 14 | . . . . 14 . . . . . . . . . Robot Hit Streak 14 | . 9 14 8 10 11 14 . 6 10 5 10 . 6 Robot Miss Streak 7 | . 2 4 . 4 4 4 . 5 4 2 7 . 7 Penetration Max 1 | . . . . . 1 1 . . 1 . . . . Secondary Targets 1 | . 1 . . . . . . . . . . . . Max Gunslinging Chain 1 | . 1 . . . . . . . . . . . . Shots Hit Robots 569 | . 15 51 7 60 122 121 . 31 52 6 57 . 47 Core Hits 291 | . 7 24 2 26 49 55 . 23 30 4 44 . 27 Critical Kills 6 | . . 1 . 1 1 . . . . . 1 . 2 Critical Parts Destroyed 5 | . . . . . 1 1 . . . . . . 3 Critical Strikes 11 | . . 1 . 1 2 1 . . . . 1 . 5 Meltdown 4 | . . 1 . 1 1 . . . . . 1 . . Destroy 7 | . . . . . 1 1 . . . . . . 5 Melee Attacks 11 | . 3 8 . . . . . . . . . . . Impact 8 | . 3 5 . . . . . . . . . . . Slashing 3 | . . 3 . . . . . . . . . . . Piercing . | . . . . . . . . . . . . . . Sneak Attacks . | . . . . . . . . . . . . . . Combat Hostiles . | . . . . . . . . . . . . . . Follow-up Attacks . | . . . . . . . . . . . . . . Damage Inflicted 13935 | . 200 1120 138 1376 2831 2963 . 724 1502 157 1427 . 1497 Guns 2725 | . 200 . 15 117 875 602 . 169 185 . 24 . 538 Cannons 10738 | . . 1065 123 1191 1948 2337 . 555 1296 157 1403 . 663 Explosions 364 | . . . . 68 . . . . . . . . 296 Melee 33 | . . 33 . . . . . . . . . . . Ramming 75 | . . 22 . . 8 24 . . 21 . . . . Kinetic 3185 | . 200 . 15 117 875 602 . 169 243 . 354 . 610 Thermal 10177 | . . 1065 123 1090 1948 2337 . 555 1238 157 1073 . 591 Explosive 296 | . . . . . . . . . . . . . 296 Electromagnetic 169 | . . . . 169 . . . . . . . . . Impact . | . . . . . . . . . . . . . . Slashing 33 | . . 33 . . . . . . . . . . . Piercing . | . . . . . . . . . . . . . . Highest Corruption 3 | . . . . . . 2 . . . . . . 3 Average Corruption 2 | . . . . . . 1 . . . . . . 2 Corruption Purged . | . . . . . . . . . . . . . . Corruption Blocked . | . . . . . . . . . . . . . . Effects 71 | . . . . . . 18 . . . . . . 53 Message Errors 15 | . . . . . . 5 . . . . . . 10 Matter Fused 21 | . . . . . . 6 . . . . . . 15 Heat Flow Errors 8 | . . . . . . . . . . . . . 8 Energy Discharges 7 | . . . . . . 3 . . . . . . 4 Parts Fused 1 | . . . . . . 1 . . . . . . . Data Loss (minor) 6 | . . . . . . . . . . . . . 6 Data Loss (major) 4 | . . . . . . . . . . . . . 4 Misfires 5 | . . . . . . 1 . . . . . . 4 Alerts 2 | . . . . . . 1 . . . . . . 1 Weapon Failures 2 | . . . . . . 1 . . . . . . 1 Overload Shots . | . . . . . . . . . . . . . . Overflow Damage 42 | . . . . 11 15 . . . . . 9 . 7 Projectiles 42 | . . . . 11 15 . . . . . 9 . 7 Explosions . | . . . . . . . . . . . . . . Melee . | . . . . . . . . . . . . . . Knockbacks 12 | . . . . . . . . . 2 . 9 . 1 Impact 2 | . . . . . . . . . 2 . . . . Kinetic 10 | . . . . . . . . . . . 9 . 1 Secondary . | . . . . . . . . . . . . . . Self-Inflicted Damage 40 | . . 8 . 32 . . . . . . . . . Shots 1 | . . . . 1 . . . . . . . . . Rammed 10 | . . 4 . . 2 1 . . 3 . . . . Targets Rammed 11 | . . 4 . . 2 2 . . 3 . . . . Kicked . | . . . . . . . . . . . . . . Crushed 1 | . . . . . . 1 . . . . . . . Highest Temperature 372 | . 6 324 249 324 265 291 . 60 372 117 315 . 361 Average Temperature 108 | . 6 120 130 125 85 100 . 44 138 57 83 . 117 Received Heat Transfer 2445 | . 30 159 9 513 270 576 . 30 219 . 180 . 459 Effects 7 | . . 1 . 2 . 1 . . 2 . . . 1 Shutdowns 1 | . . . . . . . . . 1 . . . . Interference 5 | . . 1 . 2 . 1 . . . . . . 1 Short Circuit 1 | . . . . . . . . . 1 . . . . Siege Activations . | . . . . . . . . . . . . . . Martial Activations . | . . . . . . . . . . . . . . Shielding Activations . | . . . . . . . . . . . . . . Robots Disrupted . | . . . . . . . . . . . . . . Combat Hostiles . | . . . . . . . . . . . . . . Robots Corrupted . | . . . . . . . . . . . . . . Combat Hostiles . | . . . . . . . . . . . . . . Parts Fried 1 | . . . . 1 . . . . . . . . . Impact Corruptions . | . . . . . . . . . . . . . . Robots Melted 4 | . . 1 . 1 1 . . . . . 1 . . Combat Hostiles 4 | . . 1 . 1 1 . . . . . 1 . . Parts Melted 34 | . . 5 1 3 6 6 . . 8 2 3 . . Heat Transferred 16500 | . . 1924 222 1861 3367 3661 . 888 2066 261 1571 . 679 Parts Sabotaged . | . . . . . . . . . . . . . . Parts Stolen . | . . . . . . . . . . . . . . Parts Stripped . | . . . . . . . . . . . . . . Power Chain Reactions 1 | . . . . 1 . . . . . . . . . Alert | -11 -10 -9 -8 -8 -8 -8 -7 -7 -6 -6 -6 -6 -5 ------- Run | Yrd Mat Mat Mat Gar Mat Gar Fac DSF Fac Low Low Zio Pro Maximum Alert Level 4 | . . 1 . 2 2 4 2 2 2 . . . . Low Security (%) 24 | 100 100 54 100 40 . . . . . . . . . Level 1 39 | . . 45 . 45 64 4 . . 82 . . . . Level 2 20 | . . . . 14 35 23 100 100 17 . . . . Level 3 11 | . . . . . . 52 . . . . . . . Level 4 4 | . . . . . . 19 . . . . . . . Level 5 . | . . . . . . . . . . . . . . High Security . | . . . . . . . . . . . . . . Max Security . | . . . . . . . . . . . . . . Peak Influence 1270 | . 105 369 161 465 543 1270 666 629 440 . . . . Initial 666 | . . 1 150 33 226 345 666 469 329 . . . . Average 394 | . 38 167 114 227 366 863 666 548 341 . . . . Influence Increases 4467 | . 136 662 31 482 866 975 5 190 490 50 310 . 270 Destroy 0b10 Robot/C 3120 | . 100 360 20 360 600 640 . 160 340 40 280 . 220 Destroy 0b10 Robot/NC 50 | . . 25 . . 20 5 . . . . . . . Destroy Leader 518 | . 20 104 10 10 144 40 . 30 100 10 30 . 20 Allied During Kill 24 | . . . . 6 18 . . . . . . . . Successful Hack 81 | . . 41 . . 17 . 5 . 18 . . . . Disable Machine 75 | . . 30 . . 15 15 . . 15 . . . . Anti-Garrison Action 300 | . . . . 50 . 250 . . . . . . . Destroy Structure 89 | . 1 12 1 26 22 10 . . 17 . . . . Partial Spotted 30 | . . 15 . 15 . . . . . . . . . Lose Combat Pursuer 180 | . 15 75 . 15 30 15 . . . . . . 30 Influence Decreases 4438 | . 131 310 337 68 799 237 604 232 698 461 304 16 241 Entered New Map 1936 | . . 4 207 18 239 187 604 202 300 157 2 16 . Time Decay 2231 | . 131 296 130 . 530 . . . 398 294 252 . 200 Lost Part 251 | . . 10 . 50 10 50 . 30 . 10 50 . 41 Lost Ally 20 | . . . . . 20 . . . . . . . . Squads Dispatched 17 | . 1 2 . . 5 . . 2 7 . . . . Investigation 3 | . . 2 . . . . . . 1 . . . . Extermination 2 | . . . . . . . . . 2 . . . . Reinforcement 12 | . 1 . . . 5 . . 2 4 . . . . Assault . | . . . . . . . . . . . . . . Garrison . | . . . . . . . . . . . . . . Intercept . | . . . . . . . . . . . . . . Searches Triggered . | . . . . . . . . . . . . . . Construction Impeded . | . . . . . . . . . . . . . . Haulers Reinforced . | . . . . . . . . . . . . . . Active Scanning Responses . | . . . . . . . . . . . . . . Cargo Convoy Interrupts . | . . . . . . . . . . . . . . Stealth | -11 -10 -9 -8 -8 -8 -8 -7 -7 -6 -6 -6 -6 -5 --------- Run | Yrd Mat Mat Mat Gar Mat Gar Fac DSF Fac Low Low Zio Pro Distress Signals 24 | . 2 1 . . 1 1 . . . . . . 19 Communications Jammed . | . . . . . . . . . . . . . . Distress Signals . | . . . . . . . . . . . . . . Times Spotted 210 | . 7 31 1 17 44 37 . 8 22 5 16 2 20 Peak Tracking Total 8 | . 6 7 1 3 8 4 . 4 4 3 5 1 5 Tactical Retreats 10 | . 1 4 . 1 2 1 . . . . . . 1 Traps | -11 -10 -9 -8 -8 -8 -8 -7 -7 -6 -6 -6 -6 -5 ------- Run | Yrd Mat Mat Mat Gar Mat Gar Fac DSF Fac Low Low Zio Pro Traps Triggered 2 | . . . . . . 2 . . . . . . . Indirectly . | . . . . . . . . . . . . . . Trap Hack Attempts . | . . . . . . . . . . . . . . Triggered . | . . . . . . . . . . . . . . Disarmed . | . . . . . . . . . . . . . . Reprogrammed . | . . . . . . . . . . . . . . Reused . | . . . . . . . . . . . . . . Traps Extracted . | . . . . . . . . . . . . . . Installed . | . . . . . . . . . . . . . . Triggered . | . . . . . . . . . . . . . . Machines | -11 -10 -9 -8 -8 -8 -8 -7 -7 -6 -6 -6 -6 -5 ---------- Run | Yrd Mat Mat Mat Gar Mat Gar Fac DSF Fac Low Low Zio Pro Machines Disabled 12 | . . 2 . 1 1 5 . . 1 . 1 . 1 Max in Single Turn 1 | . . 1 . 1 1 1 . . 1 . 1 . 1 Garrison Relay 4 | . . . . 1 . 3 . . . . . . . Machines Repaired . | . . . . . . . . . . . . . . Machines Dismantled . | . . . . . . . . . . . . . . Machines Sabotaged . | . . . . . . . . . . . . . . Overloaded Fab Kills . | . . . . . . . . . . . . . . Hacking | -11 -10 -9 -8 -8 -8 -8 -7 -7 -6 -6 -6 -6 -5 --------- Run | Yrd Mat Mat Mat Gar Mat Gar Fac DSF Fac Low Low Zio Pro Machines Accessed 25 | . 3 5 2 1 6 1 1 . 5 . 1 . . Terminals 14 | . 3 3 1 1 3 1 1 . . . 1 . . Fabricators 1 | . . . . . . . . . 1 . . . . Repair Stations 2 | . . . . . 2 . . . . . . . . Recycling Units 5 | . . 2 . . . . . . 3 . . . . Scanalyzers 1 | . . . . . . . . . 1 . . . . Garrison Access 2 | . . . 1 . 1 . . . . . . . . Total Hacks 57 | . 9 13 2 1 11 2 2 . 9 . 8 . . Successful 31 | . 2 6 2 1 7 . 1 . 4 . 8 . . Failed 26 | . 7 7 . . 4 2 1 . 5 . . . . Catastrophic 10 | . 3 1 . . 2 1 . . 3 . . . . Database Lockouts . | . . . . . . . . . . . . . . Manual 20 | . 6 6 . . 5 . . . 2 . . 1 . Terminals 39 | . 9 10 1 1 6 2 2 . . . 8 . . Fabricators 1 | . . . . . . . . . 1 . . . . Repair Stations 4 | . . . . . 4 . . . . . . . . Recycling Units 8 | . . 3 . . . . . . 5 . . . . Scanalyzers 3 | . . . . . . . . . 3 . . . . Garrison Access 2 | . . . 1 . 1 . . . . . . . . Terminal Hacks 20 | . 2 5 1 1 2 . 1 . . . 8 . . Record 9 | . . 1 . . . . . . . . 8 . . Open Door 1 | . . . . 1 . . . . . . . . . Open DSF 1 | . . . . . . . 1 . . . . . . Branch Access Points 1 | . . 1 . . . . . . . . . . . Locate Traps 3 | . 1 1 . . 1 . . . . . . . . Hauler Manifests 2 | . 1 1 . . . . . . . . . . . Registered Components 2 | . . 1 . . 1 . . . . . . . . Zone Layout 1 | . . . 1 . . . . . . . . . . Fabricator Hacks . | . . . . . . . . . . . . . . Repair Station Hacks 4 | . . . . . 4 . . . . . . . . Scan Component 2 | . . . . . 2 . . . . . . . . Repair 2 | . . . . . 2 . . . . . . . . Recycling Unit Hacks 2 | . . . . . . . . . 2 . . . . Retrieve Components 2 | . . . . . . . . . 2 . . . . Scanalyzer 2 | . . . . . . . . . 2 . . . . Insert Component 1 | . . . . . . . . . 1 . . . . Analyze 1 | . . . . . . . . . 1 . . . . Garrison Access Hacks 2 | . . . 1 . 1 . . . . . . . . Unlock Access 2 | . . . 1 . 1 . . . . . . . . Unauthorized Hacks 1 | . . 1 . . . . . . . . . . . Terminals . | . . . . . . . . . . . . . . Fabricators . | . . . . . . . . . . . . . . Repair Stations . | . . . . . . . . . . . . . . Recycling Units 1 | . . 1 . . . . . . . . . . . Mask 1 | . . 1 . . . . . . . . . . . Scanalyzers . | . . . . . . . . . . . . . . Garrison Access . | . . . . . . . . . . . . . . Data Cores Recovered 1 | . . 1 . . . . . . . . . . . Used . | . . . . . . . . . . . . . . Hacking Detections 18 | . 3 4 . . 6 1 . . 4 . . . . Full Trace Events 4 | . 1 2 . . . . . . 1 . . . . Feedback Events . | . . . . . . . . . . . . . . Feedback Blocked . | . . . . . . . . . . . . . . Robot Schematics Acquired . | . . . . . . . . . . . . . . Robots Built . | . . . . . . . . . . . . . . Authchips . | . . . . . . . . . . . . . . Time . | . . . . . . . . . . . . . . Total Robot Build Rating . | . . . . . . . . . . . . . . Part Schematics Acquired 1 | . . . . . . . . . 1 . . . . Parts Built . | . . . . . . . . . . . . . . Authchips . | . . . . . . . . . . . . . . Time . | . . . . . . . . . . . . . . Total Part Build Rating . | . . . . . . . . . . . . . . Parts Repaired 2 | . . . . . 2 . . . . . . . . Time 102 | . . . . . 102 . . . . . . . . Parts Recycled . | . . . . . . . . . . . . . . Recycled Matter . | . . . . . . . . . . . . . . Retrieved Matter . | . . . . . . . . . . . . . . Retrieved Components 11 | . . . . . . . . . 11 . . . . Parts Scanalyzed 1 | . . . . . . . . . 1 . . . . Part Schematics Acquired 1 | . . . . . . . . . 1 . . . . Parts Damaged . | . . . . . . . . . . . . . . Bothacking | -11 -10 -9 -8 -8 -8 -8 -7 -7 -6 -6 -6 -6 -5 ------------ Run | Yrd Mat Mat Mat Gar Mat Gar Fac DSF Fac Low Low Zio Pro Used RIF Installer . | . . . . . . . . . . . . . . Robots Hacked . | . . . . . . . . . . . . . . Non-combat . | . . . . . . . . . . . . . . Combat . | . . . . . . . . . . . . . . Robot Hacks Applied . | . . . . . . . . . . . . . . Relay Couplers Released 19 | . . . . 5 . 14 . . . . . . . Machine Destruction 19 | . . . . 5 . 14 . . . . . . . Fabnet Peak Effective % . | . . . . . . . . . . . . . . Robots Rewired . | . . . . . . . . . . . . . . Allies Hacked . | . . . . . . . . . . . . . . Hacks Repelled . | . . . . . . . . . . . . . . Allies | -11 -10 -9 -8 -8 -8 -8 -7 -7 -6 -6 -6 -6 -5 -------- Run | Yrd Mat Mat Mat Gar Mat Gar Fac DSF Fac Low Low Zio Pro Total Allies 2 | . . . . 2 . . . . . . . . . Largest Group 2 | . . . . 2 2 . . . . . . . . Highest-Rated Group 59 | . . . . 59 59 . . . . . . . . Highest-Rated Ally 39 | . . . . 39 39 . . . . . . . . Initial Warlord ECA Mod 45 | . . . . . 1 1 7 7 6 6 6 6 5 Total Orders . | . . . . . . . . . . . . . . Ally Attacks 30 | . . . . 2 28 . . . . . . . . Total Damage 400 | . . . . 36 364 . . . . . . . . Kills 7 | . . . . . 7 . . . . . . . . Allies Corrupted . | . . . . . . . . . . . . . . Allies Melted . | . . . . . . . . . . . . . . Intel | -11 -10 -9 -8 -8 -8 -8 -7 -7 -6 -6 -6 -6 -5 ------- Run | Yrd Mat Mat Mat Gar Mat Gar Fac DSF Fac Low Low Zio Pro Active Infowar (turns) 4740 | . 100 60 . . . . . . . . . 2400 2180 Sensors 2400 | . . . . . . . . . . . . 2400 . Terrain 160 | . 100 60 . . . . . . . . . . . Decoding 2180 | . . . . . . . . . . . . . 2180 Robot Analysis Total . | . . . . . . . . . . . . . . Derelict Logs Recovered 4 | . . . . . . . . . . 1 1 1 1 Drone Launches . | . . . . . . . . . . . . . . Drone Recoveries . | . . . . . . . . . . . . . . Exploration | -11 -10 -9 -8 -8 -8 -8 -7 -7 -6 -6 -6 -6 -5 ------------- Run | Yrd Mat Mat Mat Gar Mat Gar Fac DSF Fac Low Low Zio Pro Turns Passed 13780 | 92 380 967 262 819 1498 1407 4 220 957 658 797 2650 3069 Spaces Moved 5417 | 51 153 465 141 379 679 637 3 88 476 399 392 1059 495 Core 349 | 4 . . . . . . . . . . . . 345 Treads 4969 | 47 153 366 141 379 679 637 3 88 476 399 392 1059 150 Legs . | . . . . . . . . . . . . . . Wheels 99 | . . 99 . . . . . . . . . . . Hover . | . . . . . . . . . . . . . . Flight . | . . . . . . . . . . . . . . Fastest Speed 50 | 50 160 100 160 160 160 162 162 162 160 161 161 243 50 Average Speed 218 | 154 160 151 160 160 162 164 162 175 160 161 175 247 591 Slowest Speed 1300 | 160 160 240 160 160 165 246 162 243 161 161 245 325 1300 Overloaded Moves . | . . . . . . . . . . . . . . Propulsion Burnouts . | . . . . . . . . . . . . . . Robots Hopped . | . . . . . . . . . . . . . . Potential Cave-ins . | . . . . . . . . . . . . . . Cave-ins Triggered . | . . . . . . . . . . . . . . Exploration Rate (%) 43 | 4 30 43 13 41 62 56 . 73 11 57 46 83 46 Regions Visited 13 Branch Regions 4 Pre-discovered Areas 2 | . . . . . . . . . . 1 . 1 . Known Exits Taken 5 | . . . 1 . 1 . 1 . 1 . . 1 . Unknown Exits Taken 5 | 1 1 1 . . . . . . . 1 1 . . Scrap Searched 7 | . . . . . . . . . . 1 3 2 1 Spaces Dug 9 | . 1 6 . . . . . . 1 . 1 . . Terrain Destroyed 101 | . 1 6 . 7 7 5 . . 16 . 8 . 51 Melee 7 | . 1 6 . . . . . . . . . . . Projectile 56 | . . . . 1 6 5 . . 16 . 8 . 20 AOE 37 | . . . . 6 . . . . . . . . 31 Terrain Rammed . | . . . . . . . . . . . . . . Walls Destroyed . | . . . . . . . . . . . . . . Machines Disabled . | . . . . . . . . . . . . . . Actions | -11 -10 -9 -8 -8 -8 -8 -7 -7 -6 -6 -6 -6 -5 --------- Run | Yrd Mat Mat Mat Gar Mat Gar Fac DSF Fac Low Low Zio Pro Total 6660 | 61 263 634 175 491 953 842 2 125 605 408 435 1096 570 Wait 529 | . 82 66 14 45 162 96 . 4 40 2 . . 18 Move 5404 | 50 152 464 140 378 679 635 2 87 475 398 391 1058 495 Hop . | . . . . . . . . . . . . . . Pick Up 113 | 5 7 18 7 6 15 10 . 8 17 2 1 15 2 Fast Attach 26 | 6 1 5 1 2 4 2 . . 1 . 1 3 . Attach 47 | . . 4 2 5 1 5 . 5 4 1 8 5 7 Detach 7 | . . 1 . . . . . . . . 2 . 4 Swap 63 | . 3 11 2 2 13 6 . 2 16 . 2 3 3 Drop 106 | . 4 16 7 3 20 11 . 4 21 2 . 12 6 Fire 343 | . 11 37 2 50 57 75 . 15 28 3 30 . 35 Melee 11 | . 3 8 . . . . . . . . . . . Ram 1 | . . 1 . . . . . . . . . . . Kick . | . . . . . . . . . . . . . . Crush 10 | . . 3 . . 2 2 . . 3 . . . . Escape Stasis . | . . . . . . . . . . . . . . Rewire . | . . . . . . . . . . . . . . Trap . | . . . . . . . . . . . . . . Miscellaneous . | . . . . . . . . . . . . . . Route ------- -11/Scrapyard -10/Materials -9/Materials (discovered 2 exits: *Mat / *Min) -8/Materials -8/Garrison (discovered 2 exits: *Mat x2) -8/Materials (discovered 4 exits: *Fac x2 / [*Sto] / Gar) -8/Garrison (discovered 2 exits: *Fac x2) -7/Factory -7/DSF -6/Factory (discovered 2 exits: *Fac / *Low) -6/Lower Caves -6/Lower Caves (discovered 2 exits: Fac / *Zio) -6/Zion -5/Proximity Caves (discovered 1 exit: Fac) History --------- Turn | Location | Event 11 | -11/Scrapyard | Discovered new exit (range 15) 93 | -11/Scrapyard | Entered Materials 306 | -10/Materials | Build established: Mutant 470 | -10/Materials | Discovered new exit (range 3) 473 | -10/Materials | Entered another Materials area 473 | -9/Materials | Evolved 2 slots: Propulsion x1, Weapon x1 887 | -9/Materials | Discovered new exit (range 8) 996 | -9/Materials | Build established: Gunner 1288 | -9/Materials | Identified exit to Mines 1424 | -9/Materials | Discovered new exit (range 10) 1440 | -9/Materials | Entered another Materials area 1440 | -8/Materials | Evolved 2 slots: Propulsion x1, Weapon x1 1600 | -8/Materials | Identified exit to Garrison 1702 | -8/Materials | Entered Garrison 1786 | -8/Garrison | Triggered checkpoint 1794 | -8/Garrison | Triggered checkpoint 1926 | -8/Garrison | Discovered new exit (range 11) 1942 | -8/Garrison | Triggered checkpoint 2030 | -8/Garrison | Garrison Relay disabled 2059 | -8/Garrison | Build established: Scavenger-Gunner 2136 | -8/Garrison | Triggered checkpoint 2218 | -8/Garrison | Lost 3 parts (2n1w) 2263 | -8/Garrison | Discovered new exit (range 9) 2281 | -8/Garrison | Triggered checkpoint 2322 | -8/Garrison | Triggered checkpoint 2436 | -8/Garrison | Rescued a captive Derelict 2439 | -8/Garrison | Rescued a captive Derelict 2521 | -8/Garrison | Entered Materials 2521 | -8/Materials | Accompanied by 2 allies 2708 | -8/Materials | Repaired Adv. Beam Cannon 2800 | -8/Materials | Repaired Adv. Beam Cannon 3403 | -8/Materials | Discovered new exit (range 16) 3506 | -8/Materials | Discovered new exit (range 3) 3728 | -8/Materials | Discovered new exit (range 5) 4019 | -8/Materials | Identified exit to Garrison 4019 | -8/Materials | Entered Garrison 4036 | -8/Garrison | Triggered checkpoint 4080 | -8/Garrison | Garrison Relay disabled 4185 | -8/Garrison | Triggered checkpoint 4193 | -8/Garrison | Triggered checkpoint 4255 | -8/Garrison | Triggered checkpoint 4375 | -8/Garrison | Triggered checkpoint 4413 | -8/Garrison | Garrison Relay disabled 4445 | -8/Garrison | Triggered checkpoint 4536 | -8/Garrison | Triggered checkpoint 4632 | -8/Garrison | Lost 3 parts (2n1w) 4727 | -8/Garrison | Discovered new exit (range 12) 5074 | -8/Garrison | Discovered new exit (range 11) 5114 | -8/Garrison | Triggered checkpoint 5180 | -8/Garrison | Garrison Relay disabled 5268 | -8/Garrison | Attempted to access garrison exit controls, blocked by remote lockdown 5426 | -8/Garrison | Entered Factory 5426 | -7/Factory | Evolved 2 slots: Utility x2 5430 | -7/Factory | Identified exit to DSF 5430 | -7/Factory | Entered DSF 5457 | -7/DSF | Additional patrols routed to DSF 5632 | -7/DSF | Discovered new exit (range 11) 5650 | -7/DSF | Entered Factory 5650 | -6/Factory | Evolved 2 slots: Propulsion x2 6023 | -6/Factory | Discovered new exit (range 8) 6275 | -6/Factory | Identified exit to Factory 6412 | -6/Factory | Build established: Scavenger-Tank 6594 | -6/Factory | Discovered new exit (range 4) 6603 | -6/Factory | Identified exit to Lower Caves 6607 | -6/Factory | Entered Lower Caves 6764 | -6/Lower Caves | Met a Warlord Commander 6765 | -6/Lower Caves | Learned location of Warlord (-5) 6766 | -6/Lower Caves | Warlord Commander delivered Encrypted Comm Array 6771 | -6/Lower Caves | Found Encrypted Comm Array 7225 | -6/Lower Caves | Discovered new exit (range 15) 7255 | -6/Lower Caves | Learned location of 1 exit from Proximity Caves 7265 | -6/Lower Caves | Entered another Lower Caves area 7417 | -6/Lower Caves | Learned Factory trap positions 7743 | -6/Lower Caves | Discovered new exit (range 16) 7853 | -6/Lower Caves | Attracted the attention of an 0b10 base 7858 | -6/Lower Caves | Learned Factory trap positions 7858 | -6/Lower Caves | Learned Extension emergency access door positions 7858 | -6/Lower Caves | Learned Research garrison access intel 7858 | -6/Lower Caves | Learned Armory garrison access intel 7937 | -6/Lower Caves | Lost 4 parts (3n1w) 8062 | -6/Lower Caves | Entered Zion 8143 | -6/Zion | Discovered new exit (range 14) 8212 | -6/Zion | Found Prototype Processor 8212 | -6/Zion | Identified Exp. Signal Interpreter 8217 | -6/Zion | Found Prototype Processor 8217 | -6/Zion | Identified Exp. Target Analyzer 8222 | -6/Zion | Found Prototype Processor 8222 | -6/Zion | Identified Spectral Analyzer 8232 | -6/Zion | Found Prototype Processor 8242 | -6/Zion | Found Prototype Processor 8514 | -6/Zion | Build established: Scavenger-Skirmisher 8522 | -6/Zion | Given A8's code to call for help 8567 | -6/Zion | Found Prototype Device 8567 | -6/Zion | Identified Bomb Factory No. 2 9311 | -6/Zion | Received a hallucinogenic algorithm 9311 | -6/Zion | Ran a hallucination algorithm 9632 | -6/Zion | Given the Hacking Drone Bay 9632 | -6/Zion | Found Prototype Device 10709 | -6/Zion | Identified exit to Proximity Caves 10712 | -6/Zion | Entered Proximity Caves 10842 | -5/Proximity Caves | Learned Factory security intel 10926 | -5/Proximity Caves | Build established: Scavenger-Gunner 11264 | -5/Proximity Caves | Build established: Scavenger-Tank 11334 | -5/Proximity Caves | Core integrity fell below 50% 11455 | -5/Proximity Caves | Lost 7 allies 11547 | -5/Proximity Caves | Lost 3 allies 11623 | -5/Proximity Caves | Build established: Tank 11762 | -5/Proximity Caves | Lost 3 allies 13695 | -5/Proximity Caves | Attracted the attention of an 0b10 checkpoint 13732 | -5/Proximity Caves | Core integrity fell below 20% 13758 | -5/Proximity Caves | Lost 6 parts (1p1n1u3w) 13781 | -5/Proximity Caves | Destroyed by D-63 Destroyer with Heavy Rocket Launcher Last Messages --------------- 13716_ Rnf. Deuterium Engine destroyed. 13720_ Adv. Heat Sink destroyed. 13723_ Carbon-fiber Leg fries itself beyond repair. 13725_ Broken Arm. Treads destroyed. 13725_ Penetrated by Slug. 13727_ Plasma Cannon destroyed. 13728_ Dropped Hcp. Storage Unit. 13729_ Dropped Matter Compressor. 13730_ Dropped Broken Imp. Cooling System. 13731_ Penetrated by Slug. 13731_ Dropped Adv. System Shield. 13731_ Critical hit (Burn: +37). 13732_ Acquired Authchip [Propulsion]. 13733_ Dropped Graphene Brace. 13734_ Penetrated by Slug. 13737_ Dropped Com. Ion Cannon. 13758_ Target Drone destroyed. 13772_ System corrupted: Substantial component data lost. Map ----- +----------------------------------------------------+ | ?????????????????????????????????????????????????? | | ???????????????????????????????????????????